bitfinex/quotes_SOLUSD_20250305
["timestamp","ask_amount","ask_price","bid_price","bid_amount"]
[1741171765697,0.03,149.84,149.8,48.85396231]
[1741171766008,0.03,149.84,149.82,48.85396231]
[1741171766184,0.03,149.84,149.81,48.85396231]
[1741171766383,0.03,149.84,149.8,213.63390011]
[1741171766591,0.03,149.84,149.81,214.07666813]
[1741171766789,0.03,149.84,149.81,525.63390011]
[1741171767412,0.03,149.84,149.83,67.50361117]
[1741171767600,0.03,149.84,149.83,232.72482505]
[1741171767776,0.03,149.84,149.83,232.28354897]
[1741171768398,0.03,149.84,149.83,164.7799378]
[1741171768808,0.03,149.84,149.83,213.63390011]
[1741171769418,0.03,149.84,149.83,164.7799378]
[1741171772921,0.03,149.84,149.83,82.3]
[1741171774334,0.31432314,149.84,149.8,82.4799378]
[1741171774522,0.28432314,149.79,149.75,0.033]
[1741171774708,0.14216157,149.79,149.75,82.5129378]
[1741171775525,20.0,149.76,149.75,0.033]
[1741171775732,23.3675,149.78,149.75,0.033]
[1741171776139,6.6764,149.78,149.75,82.5129378]
[1741171776750,6.81766157,149.8,149.75,82.5129378]
[1741171776944,6.6746,149.82,149.75,194.83149855]
[1741171777255,6.7039,149.84,149.78,30.01856075]
[1741171777458,0.03,149.84,149.78,201.47489855]
[1741171778462,0.03,149.84,149.79,0.4428373]
[1741171778834,0.03,149.84,149.81,30.01856075]
[1741171779032,0.03,149.84,149.81,195.24081562]
[1741171779237,0.03,149.84,149.81,164.7799378]
[1741171780746,0.17216157,149.84,149.8,82.4799378]
[1741171781628,6.6742,149.83,149.8,82.4799378]
[1741171783831,6.6742,149.83,149.8,59.23126028]
[1741171784244,0.28432314,149.82,149.77,141.53126028]
[1741171784442,0.28432314,149.82,149.77,82.3]
[1741171785267,6.6751,149.81,149.77,82.3]
[1741171785472,0.14216157,149.8,149.77,141.53126028]
[1741171785678,0.14216157,149.8,149.77,141.56426028]
[1741171786142,39.91104329,149.84,149.77,141.56426028]
[1741171786143,16.7153,149.84,149.77,141.56426028]
[1741171786339,6.6742,149.83,149.77,141.56426028]
[1741171787076,0.03,149.84,149.78,0.44338682]
[1741171787283,20.03,149.84,149.78,342.01856075]
[1741171787451,0.03,149.84,149.78,460.20756028]
[1741171787642,0.03,149.84,149.78,453.53126028]
[1741171788291,20.0,149.83,149.78,141.53126028]
[1741171789378,23.50336157,149.82,149.78,141.53126028]
[1741171789678,6.6746,149.82,149.78,141.53126028]
[1741171790776,23.3612,149.82,149.78,141.53126028]
[1741171791149,0.28432314,149.81,149.77,0.033]
[1741171791566,0.14216157,149.79,149.77,0.033]
[1741171792367,6.6755,149.8,149.77,0.033]
[1741171793082,0.14216157,149.79,149.77,0.033]
[1741171793282,20.0,149.78,149.77,0.033]
[1741171793657,26.6764,149.78,149.77,0.033]
[1741171794083,26.96072314,149.78,149.77,0.0001]
[1741171794284,45.610372,149.78,149.77,0.0001]
[1741171795392,26.96072314,149.78,149.77,0.0001]
[1741171796078,26.6764,149.78,149.77,0.0001]
[1741171796469,26.81856157,149.78,149.77,0.0001]
[1741171797190,23.3644,149.8,149.77,0.0001]
[1741171797487,6.6755,149.8,149.77,0.0001]
[1741171798493,23.3644,149.8,149.77,0.0001]
[1741171799382,20.14216157,149.78,149.77,0.0001]
[1741171799785,20.28432314,149.78,149.77,0.0001]
[1741171800567,20.14216157,149.78,149.77,0.0001]
[1741171800788,20.0,149.78,149.77,0.0001]
[1741171801379,26.96072314,149.78,149.77,0.0001]
[1741171803574,45.610372,149.78,149.77,0.0001]
[1741171803808,0.14216157,149.73,149.7,82.3]
[1741171803984,0.28432314,149.73,149.68,59.23126028]
[1741171804301,18.933972,149.73,149.68,59.23126028]
[1741171804701,0.28432314,149.69,149.65,82.3]
[1741171804914,18.933972,149.69,149.65,82.3]
[1741171805199,18.933972,149.69,149.64,59.23126028]
[1741171805406,0.14216157,149.67,149.64,59.23126028]
[1741171805584,20.14216157,149.7,149.64,59.23126028]
[1741171805773,16.98082314,149.74,149.64,148.21386028]
[1741171806109,6.6777,149.75,149.66,48.66820961]
[1741171806404,6.6777,149.75,149.66,190.19946989]
[1741171806611,6.6774,149.76,149.67,30.01856075]
[1741171806777,6.6774,149.76,149.68,30.01856075]
[1741171806983,6.6774,149.76,149.68,171.54982103]
[1741171807180,0.14216157,149.76,149.69,6.6804]
[1741171807381,0.14216157,149.76,149.69,141.53126028]
[1741171807685,6.6769,149.77,149.69,141.53126028]
[1741171808307,6.6769,149.77,149.69,171.54982103]
[1741171809403,20.0,149.77,149.69,148.21136028]
[1741171809778,20.0,149.77,149.69,178.22992103]
[1741171809979,20.0,149.77,149.69,185.54992103]
[1741171810287,26.6772,149.77,149.69,497.54992103]
[1741171810487,6.6772,149.77,149.7,18.64964886]
[1741171810700,6.6755,149.8,149.72,18.64964886]
[1741171810879,8.42778104,149.8,149.72,141.53126028]
[1741171811209,0.28432314,149.79,149.72,141.53126028]
[1741171811611,23.3644,149.8,149.72,141.53126028]
[1741171812508,0.28432314,149.79,149.72,141.53126028]
[1741171812704,20.0,149.77,149.72,141.53126028]
[1741171813283,0.14216157,149.79,149.72,141.53126028]
[1741171813679,0.14216157,149.79,149.72,453.53126028]
[1741171814415,6.6764,149.78,149.72,453.53126028]
[1741171815186,16.6865,149.83,149.72,490.22882103]
[1741171815496,0.03,149.84,149.76,30.01856075]
[1741171815694,6.7039,149.84,149.76,141.97433919]
[1741171816011,6.7039,149.84,149.76,141.53126028]
[1741171816306,0.14216157,149.83,149.76,141.53126028]
[1741171816509,0.14216157,149.81,149.76,141.53126028]
[1741171816811,0.14216157,149.76,149.73,59.23126028]
[1741171817014,0.14216157,149.76,149.71,141.53126028]
[1741171818410,6.6764,149.78,149.71,141.53126028]
[1741171818916,6.6764,149.78,149.71,178.22922103]
[1741171819317,0.28432314,149.82,149.72,30.46310202]
[1741171819518,0.28432314,149.82,149.73,30.01856075]
[1741171819684,0.28432314,149.82,149.72,171.54982103]
[1741171819879,0.14216157,149.79,149.72,141.53126028]
[1741171820219,20.28432314,149.79,149.72,141.53126028]
[1741171820513,0.14216157,149.77,149.72,141.53126028]
[1741171821110,0.14216157,149.77,149.72,82.3]
[1741171821111,20.0,149.75,149.72,82.3]
[1741171821289,20.0,149.75,149.68,59.23126028]
[1741171821290,0.14216157,149.74,149.68,141.53126028]
[1741171821621,0.28432314,149.74,149.68,141.53126028]
[1741171821820,2.03748175,149.74,149.68,141.53126028]
[1741171822118,20.0,149.7,149.66,59.26426028]
[1741171822424,20.0,149.7,149.66,0.033]
[1741171822425,6.6809,149.68,149.66,0.033]
[1741171823513,20.0,149.69,149.66,0.033]
[1741171823705,6.6791,149.72,149.66,171.58282103]
[1741171823909,0.28432314,149.71,149.66,141.56426028]
[1741171824214,20.28432314,149.68,149.66,0.033]
[1741171824722,6.82346157,149.67,149.66,0.033]
[1741171826123,6.6813,149.67,149.66,0.033]
[1741171826511,26.6809,149.68,149.66,0.033]
[1741171828103,6.6809,149.68,149.66,0.033]
[1741171829427,0.14216157,149.67,149.66,0.033]
[1741171830622,0.28432314,149.67,149.66,0.033]
[1741171831008,20.0,149.64,149.62,82.333]
[1741171831209,0.28432314,149.63,149.6,0.033]
[1741171831419,2.03905501,149.63,149.6,0.033]
[1741171831734,0.28432314,149.61,149.6,0.0001]
[1741171832305,18.933972,149.61,149.6,0.0001]
[1741171832634,20.68867247,149.61,149.6,0.0001]
[1741171833502,27.37267247,149.61,149.6,0.0001]
[1741171834234,6.96832314,149.61,149.6,0.0001]
[1741171835622,6.684,149.61,149.6,0.0001]
[1741171835821,6.82616157,149.61,149.6,0.0001]
[1741171836023,6.6822,149.65,149.6,0.0001]
[1741171836202,6.6813,149.67,149.6,141.53136028]
[1741171836414,20.0,149.64,149.6,141.53136028]
[1741171836614,6.6813,149.67,149.6,141.53136028]
[1741171836831,0.28432314,149.66,149.6,141.53136028]
[1741171837137,23.3847,149.67,149.6,141.53136028]
[1741171837309,20.40376322,149.66,149.6,0.0001]
[1741171837509,0.28432314,149.65,149.6,0.0001]
[1741171837730,0.14216157,149.63,149.6,0.0001]
[1741171839136,20.14216157,149.61,149.6,0.0001]
[1741171839828,45.617972,149.61,149.6,0.0001]
[1741171840208,47.37309867,149.61,149.6,0.0001]
[1741171840409,26.82616157,149.61,149.6,0.0001]
[1741171840740,26.684,149.61,149.6,0.0001]
[1741171840925,26.96832314,149.61,149.6,0.0001]
[1741171843433,6.6831,149.63,149.6,0.0001]
[1741171844046,18.933972,149.65,149.6,59.23136028]
[1741171844339,18.933972,149.65,149.6,0.0001]
[1741171844340,20.0,149.62,149.6,0.0001]
[1741171844721,0.14216157,149.61,149.6,0.0001]
[1741171845928,6.96832314,149.61,149.6,0.0001]
[1741171846244,25.617972,149.61,149.6,0.0001]
[1741171846628,6.96832314,149.61,149.6,0.0001]
[1741171847240,25.617972,149.61,149.6,0.0001]
[1741171848544,6.96832314,149.61,149.6,0.0001]
[1741171849316,16.708,149.63,149.6,0.0001]
[1741171849643,0.28432314,149.63,149.6,0.0001]
[1741171850018,0.28432314,149.61,149.6,0.0001]
[1741171850220,2.03929125,149.61,149.6,0.0001]
[1741171850642,20.68894011,149.61,149.6,0.0001]
[1741171850938,0.28432314,149.58,149.56,0.033]
[1741171851144,2.03964798,149.58,149.56,0.033]
[1741171852053,6.97012314,149.57,149.56,0.033]
[1741171852226,0.28432314,149.56,149.51,82.333]
[1741171852429,2.03991502,149.56,149.51,0.033]
[1741171853044,0.28432314,149.53,149.51,0.033]
[1741171853730,18.933972,149.53,149.51,0.033]
[1741171854237,6.688,149.52,149.51,0.033]
[1741171854938,0.28432314,149.51,149.48,82.3]
[1741171855247,18.933972,149.51,149.46,59.23126028]
[1741171856449,6.6876,149.53,149.46,59.23126028]
[1741171857152,0.28432314,149.52,149.46,59.23126028]
[1741171857653,20.0,149.55,149.48,30.01856075]
[1741171857847,20.0,149.54,149.48,483.54982103]
[1741171858048,6.6858,149.57,149.48,483.54982103]
[1741171858222,20.0,149.56,149.49,36.70766075]
[1741171858427,0.14216157,149.55,149.48,178.23952103]
[1741171858643,20.0,149.56,149.48,178.23952103]
[1741171858845,23.3956,149.6,149.51,30.01856075]
[1741171859048,0.28432314,149.59,149.51,171.54982103]
[1741171859244,20.0,149.57,149.51,141.53126028]
[1741171859839,6.6862,149.56,149.51,141.53126028]
[1741171860241,6.6862,149.56,149.51,82.3]
[1741171860447,20.28432314,149.55,149.5,59.23126028]
[1741171861260,20.0,149.53,149.5,59.23126028]
[1741171861451,20.0,149.53,149.46,453.56426028]
[1741171861757,0.28432314,149.52,149.46,141.56426028]
[1741171862057,0.28432314,149.51,149.46,141.56426028]
[1741171863254,18.933972,149.51,149.46,82.333]
[1741171864155,0.28432314,149.49,149.46,82.333]
[1741171864527,6.6889,149.5,149.46,82.333]
[1741171864755,6.688,149.52,149.46,141.56426028]
[1741171865130,6.688,149.52,149.46,171.58282103]
[1741171865756,6.688,149.52,149.47,30.01856075]
[1741171865957,20.0,149.53,149.47,30.01856075]
[1741171866166,26.6876,149.53,149.47,30.01856075]
[1741171866455,6.6876,149.53,149.47,30.01856075]
[1741171866755,25.6643,149.59,149.48,30.01856075]
[1741171866961,25.6643,149.59,149.48,175.97892103]
[1741171867147,43.80348576,149.58,149.48,145.96036028]
[1741171867334,0.28432314,149.57,149.48,175.97892103]
[1741171868149,0.28432314,149.55,149.48,457.96036028]
[1741171868345,0.28432314,149.55,149.48,487.97892103]
[1741171869250,0.28432314,149.55,149.48,457.96036028]
[1741171869849,6.6853,149.58,149.51,30.01856075]
[1741171870163,6.684,149.61,149.53,36.70616075]
[1741171870463,0.14216157,149.6,149.53,141.53126028]
[1741171871253,20.68877539,149.6,149.53,141.53126028]
[1741171871758,18.933972,149.6,149.53,141.53126028]
[1741171872065,0.31432314,149.62,149.53,171.54982103]
[1741171872263,6.7137,149.62,149.55,30.01856075]
[1741171872440,0.03,149.62,149.56,30.01856075]
[1741171872646,0.03,149.62,149.56,171.54982103]
[1741171872949,0.03,149.62,149.56,453.53126028]
[1741171872950,6.7137,149.62,149.56,453.53126028]
[1741171873867,0.03,149.62,149.56,453.53126028]
[1741171874042,0.03,149.62,149.57,6.6858]
[1741171874243,0.03,149.62,149.56,453.53126028]
[1741171875450,20.0,149.61,149.56,453.53126028]
[1741171875856,0.03,149.62,149.56,483.54982103]
[1741171876063,0.03,149.62,149.57,30.01856075]
[1741171876386,0.03,149.62,149.57,4.89469778]
[1741171876554,0.03,149.62,149.57,4.4466]
[1741171877576,0.03,149.62,149.56,141.53126028]
[1741171877965,0.03,149.62,149.56,148.21746028]
[1741171878163,6.7135,149.62,149.56,141.53126028]
[1741171878879,0.03,149.62,149.56,178.23592103]
[1741171879263,0.03,149.62,149.56,490.23592103]
[1741171879670,0.03,149.62,149.56,460.21736028]
[1741171879983,0.03,149.62,149.56,490.23592103]
[1741171880673,0.03,149.62,149.56,483.54982103]
[1741171880982,0.03,149.62,149.56,171.54982103]
[1741171881569,0.03,149.62,149.56,178.23602103]
[1741171883284,0.03,149.62,149.58,30.01856075]
[1741171883984,0.03,149.62,149.58,342.01856075]
[1741171884281,0.03,149.62,149.58,312.0]
[1741171884485,0.03,149.62,149.56,141.53126028]
[1741171886868,6.7135,149.62,149.56,141.53126028]
[1741171888095,0.14216157,149.61,149.56,141.53126028]
[1741171888292,20.0,149.59,149.56,141.53126028]
[1741171888886,6.684,149.61,149.56,141.53126028]
[1741171890095,0.14216157,149.6,149.56,141.53126028]
[1741171890995,6.6849,149.59,149.56,141.53126028]
[1741171892080,6.6849,149.59,149.56,82.3]
[1741171892809,20.0,149.58,149.56,82.3]
[1741171893177,6.684,149.61,149.56,141.53126028]
[1741171893376,6.684,149.61,149.56,148.21736028]
[1741171894003,0.03,149.62,149.56,178.23592103]
[1741171894175,6.7136,149.62,149.56,141.53126028]
[1741171894508,6.7136,149.62,149.56,148.21746028]
[1741171894694,0.03,149.62,149.56,178.23602103]
[1741171895281,0.03,149.62,149.6,30.01856075]
[1741171895474,0.03,149.62,149.6,171.54982103]
[1741171896196,0.03,149.62,149.61,30.01856075]
[1741171896816,0.03,149.62,149.6,180.75892103]
[1741171897017,0.03,149.62,149.6,141.53126028]
[1741171898496,0.03,149.62,149.6,148.21556028]
[1741171898704,0.03,149.62,149.6,141.53126028]
[1741171898897,0.03,149.62,149.6,148.21566028]
[1741171899304,0.03,149.62,149.6,178.23422103]
[1741171900024,0.03,149.62,149.6,141.53126028]
[1741171902225,0.03,149.62,149.6,167.03125183]
[1741171902428,0.03,149.62,149.6,148.21556028]
[1741171902723,0.03,149.62,149.6,167.03125183]
[1741171902911,0.03,149.62,149.61,18.81569155]
[1741171903112,0.03,149.62,149.6,167.03125183]
[1741171904809,0.03,149.62,149.61,25.49969155]
[1741171905135,0.03,149.62,149.61,44.59655547]
[1741171905301,0.03,149.62,149.61,186.26997732]
[1741171905507,0.03,149.62,149.61,190.23566226]
[1741171905710,0.03,149.62,149.61,190.09350069]
[1741171906315,0.03,149.62,149.61,141.53126028]
[1741171909015,0.17216157,149.62,149.58,141.53126028]
[1741171911119,6.684,149.61,149.58,141.53126028]
[1741171911936,0.14216157,149.6,149.58,82.3]
[1741171912643,0.14216157,149.56,149.51,141.53126028]
[1741171912827,0.28432314,149.57,149.51,141.53126028]
[1741171913141,6.6862,149.56,149.51,141.53126028]
[1741171913339,0.28432314,149.55,149.51,82.3]
[1741171914236,0.28432314,149.55,149.5,0.033]
[1741171914237,20.68940725,149.55,149.5,0.033]
[1741171914543,0.28432314,149.51,149.5,0.033]
[1741171915417,6.97282314,149.51,149.5,0.033]
[1741171915955,6.97282314,149.51,149.47,140.58026028]
[1741171916125,9.2841,149.57,149.48,18.81569155]
[1741171916324,6.6866,149.56,149.48,159.39595183]
[1741171916621,0.28432314,149.55,149.48,140.58026028]
[1741171917039,0.28432314,149.55,149.48,139.58026028]
[1741171917222,6.688,149.52,149.48,139.58026028]
[1741171918309,20.0,149.53,149.48,139.58026028]
[1741171918732,26.6877,149.53,149.48,139.58026028]
[1741171919213,26.6877,149.53,149.48,451.58026028]
[1741171919427,16.42489727,149.57,149.48,458.26996028]
[1741171919633,6.97062314,149.56,149.48,451.58026028]
[1741171919834,25.441575,149.56,149.48,451.58026028]
[1741171920039,20.0,149.52,149.48,139.58026028]
[1741171921231,0.28432314,149.51,149.48,81.349]
[1741171921430,38.933972,149.47,149.46,0.0001]
[1741171921622,18.933972,149.46,149.44,0.033]
[1741171921825,20.69089018,149.45,149.44,0.033]
[1741171922026,20.69089018,149.45,149.44,0.0001]
[1741171922645,20.28432314,149.42,149.41,0.033]
[1741171923513,20.0,149.42,149.41,0.033]
[1741171923846,6.6907,149.46,149.41,219.782]
[1741171924141,20.0,149.45,149.41,219.782]
[1741171924316,0.28432314,149.44,149.41,0.033]
[1741171924517,0.28432314,149.42,149.41,0.033]
[1741171925135,20.69104339,149.42,149.41,0.033]
[1741171925335,20.69104339,149.42,149.41,0.0001]
[1741171925553,27.38354339,149.42,149.41,0.0001]
[1741171926326,0.28432314,149.38,149.36,0.033]
[1741171927251,20.69142554,149.38,149.36,0.033]
[1741171927634,6.6947,149.37,149.36,0.033]
[1741171928632,20.0,149.34,149.33,0.033]
[1741171928823,38.933972,149.34,149.33,0.033]
[1741171929142,20.28432314,149.34,149.33,0.033]
[1741171929641,20.28432314,149.34,149.31,0.033]
[1741171929642,26.98042314,149.34,149.31,0.033]
[1741171929950,0.28432314,149.32,149.31,0.033]
[1741171930337,0.28432314,149.29,149.28,0.033]
[1741171930932,0.28432314,149.33,149.28,0.033]
[1741171931248,0.28432314,149.33,149.28,138.433]
[1741171931649,26.6961,149.34,149.28,145.1317]
[1741171931846,0.28432314,149.33,149.28,0.033]
[1741171932241,20.0,149.31,149.28,0.033]
[1741171933123,0.28432314,149.3,149.28,0.033]
[1741171933751,6.6983,149.29,149.28,0.033]
[1741171936133,36.23480688,149.29,149.28,0.0001]
[1741171936457,18.933972,149.28,149.26,7.34e-05]
[1741171936666,34.04673488,149.29,149.26,7.34e-05]
[1741171936667,40.69312006,149.27,149.26,7.34e-05]
[1741171937356,47.39232006,149.27,149.26,7.34e-05]
[1741171937567,20.28432314,149.23,149.22,0.024]
[1741171937756,0.28432314,149.22,149.13,173.31421794]
[1741171938058,2.04398828,149.22,149.13,138.433]
[1741171938258,38.933972,149.17,149.13,0.033]
[1741171939058,0.14216157,149.14,149.13,0.033]
[1741171939438,8.74969357,149.14,149.13,0.033]
[1741171939638,6.98942314,149.14,149.13,0.033]
[1741171940855,0.14216157,149.14,149.13,0.033]
[1741171941156,20.14216157,149.14,149.13,0.033]
[1741171941467,26.98942314,149.14,149.13,0.033]
[1741171942457,45.639072,149.14,149.13,0.033]
[1741171943667,0.28432314,149.09,149.08,0.12]
[1741171943976,18.933972,149.05,148.97,228.0956734]
[1741171944156,0.28432314,149.05,148.97,258.25099134]
[1741171944483,20.0,149.04,148.98,0.033]
[1741171944777,0.28432314,149.11,149.0,30.15531794]
[1741171944960,0.14216157,149.09,149.0,219.749]
[1741171945280,0.14216157,149.06,149.0,219.749]
[1741171945453,20.0,149.07,149.0,219.749]
[1741171945651,1.90309964,149.1,149.0,219.749]
[1741171945871,18.933972,149.07,149.0,219.749]
[1741171946085,18.933972,149.07,149.0,81.349]
[1741171946086,0.14216157,149.05,149.0,81.349]
[1741171946382,20.28432314,148.99,148.98,0.033]
[1741171946883,45.645772,148.99,148.98,0.033]
[1741171947387,18.933972,148.98,148.97,1.6342734]
[1741171947554,20.69647817,148.98,148.97,1.6342734]
[1741171947954,0.14216157,148.94,148.9,138.4]
[1741171948157,18.933972,148.94,148.88,138.4]
[1741171948777,0.14216157,148.91,148.85,138.4]
[1741171948995,0.28432314,148.88,148.79,36.87611794]
[1741171949164,20.0,148.85,148.79,174.77611794]
[1741171949487,20.0,148.85,148.79,456.6208]
[1741171949653,0.14216157,148.91,148.82,30.15531794]
[1741171949859,0.28432314,148.91,148.79,456.6208]
[1741171950078,0.28432314,148.91,148.84,30.15531794]
[1741171950283,20.0,148.89,148.84,168.55531794]
[1741171950687,20.0,148.89,148.84,138.4]
[1741171950871,0.14216157,148.91,148.84,175.27381794]
[1741171951072,20.14216157,148.91,148.84,175.27381794]
[1741171951274,6.7149,148.93,148.85,30.15531794]
[1741171951594,0.14216157,148.93,148.86,30.15531794]
[1741171951754,0.14216157,148.93,148.84,145.1185]
[1741171951755,0.28432314,148.94,148.84,145.1185]
[1741171951954,0.14216157,148.92,148.84,138.4]
[1741171952269,20.0,148.91,148.84,138.4]
[1741171952476,20.0,148.91,148.85,30.15531794]
[1741171952669,6.7159,148.9,148.84,168.55531794]
[1741171952865,6.7159,148.9,148.84,219.749]
[1741171953182,0.14216157,148.89,148.84,219.749]
[1741171953592,20.0,148.88,148.84,226.4674]
[1741171953762,20.0,148.88,148.84,219.749]
[1741171953954,0.28432314,148.91,148.84,219.749]
[1741171953955,0.14216157,148.91,148.84,226.4674]
[1741171954159,0.14216157,148.91,148.84,256.62271794]
[1741171954586,1.76293981,148.95,148.84,249.90431794]
[1741171954774,16.7824,148.97,148.86,6.7177]
[1741171955281,8.47495184,148.98,148.87,30.15531794]
[1741171955462,2.0,149.05,148.87,30.15531794]
[1741171955463,10.95510593,149.05,148.93,30.15531794]
[1741171955657,10.95510593,149.05,148.93,219.749]
[1741171955864,18.933972,149.04,148.93,219.749]
[1741171956087,18.53756663,149.03,148.93,219.749]
[1741171956294,20.0,149.0,148.93,219.749]
[1741171956599,6.7096,149.04,148.93,249.90431794]
[1741171956812,6.7096,149.04,148.94,6.7141]
[1741171956998,20.0,149.01,148.94,6.7141]
[1741171957307,18.933972,149.03,148.94,256.61841794]
[1741171957487,6.7096,149.04,148.94,256.61841794]
[1741171957687,20.0,149.01,148.94,538.4631]
[1741171958197,20.0,149.01,148.94,568.61841794]
[1741171958707,0.14216157,149.01,148.94,561.90431794]
[1741171958905,0.28432314,148.98,148.9,228.9408]
[1741171959086,20.0,148.95,148.9,228.9408]
[1741171959417,20.0,148.95,148.9,219.749]
[1741171960411,20.0,148.99,148.92,30.15531794]
[1741171960581,20.0,148.99,148.93,30.15531794]
[1741171960777,25.24994791,149.01,148.93,219.749]
[1741171960985,20.0,148.98,148.93,219.749]
[1741171961996,20.0,148.94,148.93,219.749]
[1741171962198,20.0,148.98,148.93,219.749]
[1741171962400,33.5442,149.06,148.93,219.749]
[1741171962705,6.7118,148.99,148.93,219.749]
[1741171963085,6.71,149.03,148.94,30.15531794]
[1741171963287,18.64964886,149.02,148.93,219.749]
[1741171963513,18.64964886,149.02,148.93,249.90431794]
[1741171963704,6.71,149.03,148.96,30.15531794]
[1741171963881,6.7091,149.05,148.98,30.15531794]
[1741171964209,20.0,149.01,148.96,219.749]
[1741171964413,6.7091,149.05,148.92,219.749]
[1741171964414,18.64964886,148.96,148.92,219.749]
[1741171964612,20.0,148.97,148.92,219.749]
[1741171964782,20.0,148.97,148.92,249.90431794]
[1741171964980,1.76178891,149.04,148.93,30.15531794]
[1741171964981,6.85176157,149.04,148.93,30.15531794]
[1741171965302,23.62656157,149.04,148.95,30.15531794]
[1741171965508,20.0,149.0,148.96,30.15531794]
[1741171965714,20.0,149.0,148.96,219.749]
[1741171966610,20.0,148.96,148.92,219.749]
[1741171967184,26.7133,148.96,148.92,219.749]
[1741171968185,20.0,148.96,148.92,219.749]
[1741171968995,26.7133,148.96,148.92,219.749]
[1741171970090,26.7433,148.96,148.92,219.749]
[1741171972225,20.03,148.96,148.92,219.749]
[1741171972527,0.03,148.96,148.92,256.61921794]
[1741171973233,0.03,148.96,148.92,219.749]
[1741171973524,20.0,148.95,148.92,219.749]
[1741171974840,0.03,148.96,148.93,30.15531794]
[1741171975133,20.0,148.95,148.93,219.749]
[1741171975327,26.7139,148.95,148.93,219.749]
[1741171976533,26.7139,148.95,148.93,81.349]
[1741171977633,0.03,148.96,148.93,219.749]
[1741171977798,0.03,148.96,148.95,30.15531794]
[1741171977997,0.03,148.96,148.95,257.16431794]
[1741171978223,0.03,148.96,148.95,227.009]
[1741171979330,0.03,148.96,148.95,219.749]
[1741171980304,20.03,148.96,148.95,219.749]
[1741171981309,20.03,148.96,148.95,81.349]
[1741171981508,18.64964886,148.95,148.89,222.8779]
[1741171981708,26.7432,148.96,148.89,222.8779]
[1741171982009,26.7432,148.96,148.89,253.03321794]
[1741171982339,26.7432,148.96,148.89,222.8779]
[1741171982932,0.03,148.96,148.92,30.15531794]
[1741171983116,0.03,148.96,148.92,249.90431794]
[1741171983427,18.67964886,148.96,148.92,249.90431794]
[1741171983640,0.03,148.96,148.92,219.749]
[1741171983824,0.03,148.96,148.93,30.15531794]
[1741171984243,0.03,148.96,148.94,30.15531794]
[1741171984847,0.03,148.96,148.94,249.90431794]
[1741171985048,0.03,148.96,148.94,219.749]
[1741171985929,0.03,148.96,148.94,256.61831794]
[1741171986241,0.03,148.96,148.94,219.749]
[1741171987344,0.03,148.96,148.94,256.61831794]
[1741171987551,0.03,148.96,148.95,30.61796932]
[1741171987749,0.03,148.96,148.95,263.57256932]
[1741171987940,0.03,148.96,148.95,263.10991794]
[1741171988566,0.03,148.96,148.95,252.20952222]
[1741171988742,20.0,149.05,148.96,0.28432314]
[1741171988944,20.0,149.04,148.98,18.97059908]
[1741171989159,18.64964886,149.07,148.98,18.97059908]
[1741171989761,20.0,149.04,148.98,330.97059908]
[1741171989969,20.0,149.04,148.99,6.7118]
[1741171990265,20.0,149.04,148.99,253.15314429]
[1741171990435,0.03,149.1,149.01,18.97059908]
[1741171990636,20.0,149.06,149.02,30.33600895]
[1741171990835,20.0,149.05,149.02,219.749]
[1741171991849,26.7095,149.05,149.02,219.749]
[1741171992244,20.0,149.05,149.02,219.749]
[1741171992935,6.7078,149.08,149.02,219.749]
[1741171993136,6.7078,149.08,149.02,256.79540895]
[1741171993562,20.0,149.09,149.02,568.79540895]
[1741171993759,20.03,149.09,149.03,38.05676902]
[1741171993936,20.03,149.09,149.04,6.7096]
[1741171994138,0.03,149.09,149.04,37.04560895]
[1741171994560,0.03,149.09,149.04,6.7096]